bitfinex-derivatives/quotes_ETHF0:USTF0_20241129
["timestamp","ask_amount","ask_price","bid_price","bid_amount"]
[1732879736916,3.2078,3588.0,3587.9,0.27864]
[1732879737119,3.2078,3588.0,3587.7,0.8894]
[1732879737422,0.27864,3587.9,3587.7,5.32805]
[1732879737914,0.27864,3587.9,3587.8,0.4377]
[1732879738113,0.27864,3587.9,3587.8,2.5877]
[1732879739018,3.65155743,3587.9,3587.8,0.75590261]
[1732879739216,0.27866,3587.7,3587.6,40.8]
[1732879739520,0.27866,3587.7,3587.6,41.15]
[1732879739718,0.27866,3587.7,3587.6,0.35]
[1732879740715,0.27866,3587.7,3587.6,0.7674]
[1732879741518,0.27866,3587.6,3587.5,40.8]
[1732879741724,0.4107,3587.8,3587.2,0.69609]
[1732879742018,0.27868,3587.4,3587.2,0.69609]
[1732879742220,0.27887624,3588.0,3587.9,0.27864]
[1732879742422,3.2078,3588.4,3587.4,3.2078]
[1732879742624,3.2078,3588.4,3587.4,7.0278]
[1732879742820,0.27885757,3588.7,3588.1,2.54591743]
[1732879743119,0.27855,3589.1,3588.5,0.27859]
[1732879743320,0.27856,3589.0,3588.6,0.27858]
[1732879743529,3.2078,3589.2,3588.4,0.2786]
[1732879743530,0.27857,3588.9,3588.4,0.2786]
[1732879743725,0.2786,3588.5,3588.4,1.3]
[1732879744027,0.827,3588.6,3588.2,1.2632]
[1732879744325,1.10559,3588.6,3588.2,1.54182]
[1732879744521,0.827,3588.6,3588.2,1.4932]
[1732879745116,1.51628,3588.7,3588.3,0.27861]
[1732879745324,3.48667624,3588.8,3588.5,0.27859]
[1732879745522,3.48667624,3588.8,3588.3,0.27861]
[1732879745523,0.27858,3588.7,3588.3,0.27861]
[1732879745721,0.27858,3588.7,3588.3,2.20861]
[1732879745919,4.59225624,3588.8,3588.4,0.2786]
[1732879746115,4.31367624,3588.8,3588.2,1.2632]
[1732879746328,4.31367624,3588.8,3588.6,0.27858]
[1732879746525,3.76524624,3588.8,3588.7,0.4094]
[1732879746725,4.59224624,3588.8,3588.7,0.4094]
[1732879747316,4.31367624,3588.8,3588.2,1.12761]
[1732879747519,0.2786,3588.5,3588.3,0.4094]
[1732879747729,0.27859,3588.6,3588.3,0.4094]
[1732879748024,0.2786,3588.4,3588.0,0.27863]
[1732879748222,0.2786,3588.4,3588.0,0.59]
[1732879748423,0.2786,3588.4,3588.0,0.86863]
[1732879749128,0.2786,3588.4,3588.1,0.27862]
[1732879749427,3.61605794,3588.7,3588.1,0.3]
[1732879749620,0.2786,3588.4,3588.1,0.3]
[1732879749817,0.412,3588.3,3588.1,0.3]
[1732879750020,0.412,3588.3,3588.1,0.57862]
[1732879750229,0.412,3588.3,3588.1,0.3]
[1732879750432,0.412,3588.3,3587.9,1.12984]
[1732879750433,0.69061,3588.3,3587.9,1.12984]
[1732879750927,0.412,3588.3,3588.1,0.27862]
[1732879751628,0.412,3588.3,3587.9,0.8512]
[1732879751830,0.412,3588.3,3588.1,0.27862]
[1732879752228,0.412,3588.3,3588.2,0.27862]
[1732879752426,1.10559,3588.6,3588.2,0.27862]
[1732879752626,1.54769,3588.6,3587.9,4.0012]
[1732879752923,0.2786,3588.5,3588.1,0.27862]
[1732879753127,0.2786,3588.5,3588.1,1.89862]
[1732879754029,1.2691,3588.6,3588.1,1.62]
[1732879754330,0.2786,3588.4,3588.1,1.62]
[1732879754524,0.27859,3588.5,3588.1,1.62]
[1732879754830,1.2691,3588.6,3588.1,1.62]
[1732879755029,1.2691,3588.6,3588.1,1.89862]
[1732879755226,0.2786,3588.4,3588.1,1.62]
[1732879755622,0.2786,3588.5,3588.1,1.89862]
[1732879755830,1.2691,3588.6,3588.1,1.62]
[1732879756227,0.27861,3588.4,3588.1,1.62]
[1732879756731,3.2078,3588.2,3588.1,1.62]
[1732879758128,3.2078,3588.2,3588.1,1.89862]
[1732879760932,3.2078,3588.2,3588.1,1.62]
[1732879760933,3.48642,3588.2,3588.1,1.62]
[1732879761129,3.48642,3588.2,3587.9,0.4273]
[1732879761130,3.2078,3588.2,3587.9,0.4273]
[1732879761333,0.27863,3588.0,3587.5,0.4192]
[1732879761528,1.2661,3587.9,3587.7,0.27865]
[1732879761730,1.2661,3587.9,3587.8,0.27865]
[1732879761928,0.827,3587.9,3587.8,0.27865]
[1732879765633,1.10565,3587.9,3587.5,1.2541]
[1732879765843,1.10565,3587.9,3587.7,0.27865]
[1732879766042,0.827,3587.9,3587.8,0.27865]
[1732879766536,1.10564,3587.9,3587.7,0.27865]
[1732879766741,1.10564,3587.9,3587.7,1.54865]
[1732879767140,0.827,3587.9,3587.7,1.27]
[1732879767338,1.10564,3587.9,3587.7,1.27]
[1732879767536,0.27865,3587.8,3587.7,1.27]
[1732879767742,3.48645,3587.8,3587.7,1.27]
[1732879771040,3.48645,3587.8,3587.2,0.4216]
[1732879771041,0.27869,3587.3,3587.2,0.4216]
[1732879771348,4.0348,3587.3,3587.2,0.56]
[1732879771547,4.0348,3587.3,3587.2,1.26029]
[1732879773147,4.0348,3587.3,3587.2,0.4216]
[1732879773352,4.31349,3587.3,3587.2,0.4216]
[1732879775260,0.2787,3587.2,3587.0,0.72701]
[1732879775547,0.2787,3587.2,3587.0,3.10701]
[1732879777041,0.2787,3587.1,3587.0,2.8283]
[1732879777346,1.1643,3587.1,3587.0,0.4483]
[1732879779443,0.27873,3586.8,3586.7,0.8508]
[1732879780045,3.43151743,3587.1,3586.7,0.8508]
[1732879780243,0.27871,3587.0,3586.8,0.27873]
[1732879780444,0.27871,3587.0,3586.7,0.8508]
[1732879780653,0.27872,3586.9,3586.7,1.12953]
[1732879781047,0.27872,3586.9,3586.7,0.8508]
[1732879781442,0.27872,3587.0,3586.7,1.12953]
[1732879781646,2.98861743,3587.1,3586.7,0.8508]
[1732879782049,0.27872,3587.0,3586.7,1.12953]
[1732879782251,0.27871,3587.0,3586.7,1.12953]
[1732879782452,3.26731743,3587.1,3586.8,0.27873]
[1732879782650,0.27871,3587.0,3586.8,0.27873]
[1732879783148,0.821,3587.1,3586.7,0.8508]
[1732879783356,0.821,3587.1,3587.0,0.27871]
[1732879784158,3.2078,3587.3,3586.7,1.54763]
[1732879784349,0.821,3587.2,3587.1,0.2787]
[1732879785056,3.2078,3587.3,3587.1,0.2787]
[1732879785252,0.821,3587.2,3586.8,0.69681]
[1732879785447,0.821,3587.2,3587.1,0.2787]
[1732879786558,3.2078,3587.3,3587.1,0.2787]
[1732879786861,0.27869,3587.2,3587.0,0.2787]
[1732879787254,4.0288,3587.3,3587.1,0.2787]
[1732879787554,0.2787,3587.2,3587.0,0.2787]
[1732879787947,4.30749,3587.3,3587.1,0.2787]
[1732879788352,4.30749,3587.3,3586.7,0.8508]
[1732879788549,3.2078,3587.3,3587.2,0.27869]
[1732879788757,0.821,3587.3,3587.2,0.27869]
[1732879790151,0.27867,3587.6,3587.5,0.27867]
[1732879790351,1.09967,3587.6,3587.5,0.27867]
[1732879791057,1.09967,3587.6,3587.4,0.27867]
[1732879791253,1.09967,3587.6,3587.5,0.858]
[1732879791858,1.09967,3587.6,3587.5,1.13667]
[1732879792157,0.821,3587.6,3587.5,1.13667]
[1732879797457,3.2078,3587.7,3587.6,0.27866]
[1732879797663,4.0288,3587.7,3587.6,0.27866]
[1732879798162,5.26023796,3587.7,3587.6,0.27866]
[1732879798859,5.53889796,3587.7,3587.6,0.27866]
[1732879800266,5.26023796,3587.7,3587.6,0.27866]
[1732879800560,3.2078,3587.7,3587.6,0.27866]
[1732879800762,1.51007796,3587.9,3587.8,0.27865]
[1732879800956,2.33107796,3587.9,3587.8,0.70865]
[1732879801355,2.05243796,3587.9,3587.8,0.70865]
[1732879801558,2.33107796,3587.9,3587.8,0.70865]
[1732879801866,2.05243796,3587.9,3587.8,0.70865]
[1732879802366,1.23143796,3587.9,3587.8,0.70865]
[1732879803656,0.436,3588.4,3588.3,0.27861]
[1732879803858,1.0996,3588.4,3588.3,0.27861]
[1732879804059,0.27862,3588.2,3588.1,0.27862]
[1732879804267,0.27862,3588.2,3588.0,0.27862]
[1732879804268,0.27863,3588.1,3588.0,0.27862]
[1732879804669,1.51005796,3588.2,3588.1,0.27862]
[1732879804968,1.23143796,3588.2,3588.1,0.70092]
[1732879805165,1.51005796,3588.2,3588.1,0.4223]
[1732879805467,1.51005796,3588.2,3588.0,0.27863]
[1732879805661,1.51005796,3588.2,3587.9,0.4465]
[1732879805662,0.27863,3588.0,3587.9,0.4465]
[1732879805865,0.27863,3588.0,3587.9,0.9965]
[1732879806367,1.23143796,3588.2,3587.9,0.9965]
[1732879806665,0.27863,3588.0,3587.9,0.9965]
[1732879807167,0.27863,3588.0,3587.9,0.55]
[1732879807665,1.46607599,3588.2,3587.9,0.55]
[1732879807863,1.23143796,3588.2,3587.9,0.55]
[1732879808064,0.27863,3588.1,3587.9,0.82864]
[1732879808265,0.27863,3588.1,3587.9,0.55]
[1732879808661,3.8887667,3588.3,3587.9,0.82864]
[1732879808867,3.6528,3588.3,3588.0,0.27863]
[1732879809062,1.23143796,3588.1,3588.0,0.67]
[1732879809269,1.23143796,3588.1,3588.0,0.94863]
[1732879809661,2.05143796,3588.1,3588.0,0.94863]
[1732879809865,0.82,3588.1,3588.0,0.94863]
[1732879810467,1.23143796,3588.4,3588.0,41.47]
[1732879810664,0.6923,3588.5,3588.3,0.2786]
[1732879810860,1.23143796,3588.4,3588.1,0.8638]
[1732879811056,1.23143796,3588.4,3588.3,0.27861]
[1732879811468,1.23143796,3588.4,3588.1,0.8638]
[1732879811469,0.4177,3588.6,3588.2,3.2078]
[1732879811665,2.05143796,3588.6,3588.5,0.27859]
[1732879812272,0.82,3588.6,3588.5,0.27859]
[1732879812573,1.23143796,3588.7,3588.6,0.27859]
[1732879812772,1.23143796,3588.7,3588.6,2.09649]
[1732879814075,1.09857,3588.8,3588.7,0.27858]
[1732879814076,0.82,3588.8,3588.7,0.27858]
[1732879814272,2.05143796,3588.8,3588.7,2.13858]
[1732879814473,2.05143796,3588.8,3588.7,2.57588]
[1732879814671,1.23143796,3588.8,3588.7,2.57588]
[1732879814976,1.23143796,3588.8,3588.7,2.98378]
[1732879816076,3.2078,3589.1,3589.0,0.27855]
[1732879816873,0.82,3589.5,3589.4,0.27852]
[1732879817168,0.82,3589.5,3589.2,0.4142]
[1732879817369,1.23143796,3589.3,3589.2,3.05274]
[1732879817770,1.50996796,3589.3,3589.2,3.05274]
[1732879818069,1.23143796,3589.3,3589.2,3.05274]
[1732879818376,1.09852,3589.5,3589.4,0.27852]
[1732879818564,0.82,3589.5,3589.3,0.27853]
[1732879818869,0.82,3589.5,3589.2,0.4142]
[1732879819172,0.82,3589.5,3589.3,0.27853]
[1732879819366,1.15501,3589.6,3589.3,1.78853]
[1732879819562,0.82,3589.5,3589.3,1.78853]
[1732879820467,0.82,3589.5,3589.4,0.27852]
[1732879820670,0.043,3589.7,3589.6,0.27851]
[1732879821069,0.043,3589.7,3589.6,41.07851]
[1732879821277,0.043,3589.7,3589.6,40.8]
[1732879821774,0.043,3589.7,3589.6,41.07851]
[1732879824776,0.82,3590.1,3590.0,0.27848]
[1732879824976,3.2078,3590.2,3590.0,0.27848]
[1732879825177,4.0278,3590.2,3590.0,0.27848]
[1732879825473,4.0278,3590.2,3590.0,0.27847]
[1732879825676,0.27848,3590.0,3589.7,0.2785]
[1732879825876,4.0278,3590.2,3589.3,0.4433]
[1732879826074,0.68769,3589.9,3589.3,1.4433]
[1732879826275,0.4092,3589.9,3589.3,1.4433]
[1732879826677,3.2078,3590.2,3590.1,0.27847]
[1732879828181,0.82,3590.4,3590.3,0.27845]
[1732879828373,0.82,3590.4,3589.9,3.6258]
[1732879828578,0.82,3590.4,3590.3,0.27845]
[1732879828781,3.2078,3590.7,3589.9,3.6258]
[1732879828978,0.27842,3590.8,3590.3,3.2078]
[1732879829182,0.70647728,3590.9,3590.4,0.4151]
[1732879829479,0.70647728,3590.9,3590.5,0.69643]
[1732879829679,0.70647728,3590.9,3590.5,0.418]
[1732879829880,0.82,3590.8,3590.5,0.69643]
[1732879830186,0.82,3591.4,3590.7,3.2078]
[1732879830480,0.8404,3591.2,3590.7,0.53]
[1732879830687,4.0482,3591.2,3590.5,0.418]
[1732879831083,2.54450583,3590.9,3590.5,0.06]
[1732879831283,0.27843,3590.7,3590.5,0.06]
[1732879831485,4.0278,3590.8,3590.5,0.06]
[1732879831486,4.30622,3590.8,3590.5,0.06]
[1732879831784,0.27843,3590.6,3590.2,3.2078]
[1732879831978,0.27844,3590.6,3590.3,0.4135]
[1732879832182,0.27848,3590.0,3589.7,3.2078]
[1732879832378,0.27849,3589.9,3589.5,0.27851]
[1732879832589,0.27848,3590.0,3589.5,0.45851]
[1732879832787,1.09847,3590.1,3589.6,0.2785]
[1732879833299,0.82,3590.1,3589.6,1.4]
[1732879833792,0.82,3590.1,3589.9,0.27848]
[1732879834090,0.82,3590.1,3590.0,0.27848]
[1732879834385,3.2078,3590.4,3589.7,3.2078]
[1732879834386,3.2078,3590.4,3589.7,8.90112069]
[1732879834590,3.2078,3590.4,3590.3,0.27845]
[1732879835490,3.48625,3590.4,3590.0,0.27847]
[1732879835786,3.2078,3590.4,3590.3,0.27845]
[1732879836186,3.2078,3590.9,3590.3,3.90773323]
[1732879836386,3.2078,3590.9,3590.4,0.4435]
[1732879836586,3.2078,3590.9,3590.7,0.27842]
[1732879836883,0.2784,3591.0,3590.8,40.8]
[1732879837080,0.2784,3591.0,3590.8,41.07841]
[1732879837390,0.27839,3591.1,3590.9,0.4367]
[1732879837690,0.2784,3591.0,3590.9,0.4367]
[1732879838489,0.2784,3591.0,3590.6,0.27843]
[1732879838792,3.631,3590.9,3590.3,0.27845]
[1732879838988,0.27843,3590.7,3590.4,41.48664]
[1732879839183,1.2471,3590.8,3590.4,1.7982]
[1732879839388,0.27843,3590.6,3590.4,1.7982]
[1732879839585,1.2471,3590.8,3590.4,42.6182]
[1732879839586,0.27843,3590.7,3590.4,42.6182]
[1732879839792,1.52552,3590.8,3590.4,42.89664]
[1732879839982,1.2471,3590.8,3590.4,1.8182]
[1732879840187,0.27844,3590.5,3590.4,1.8182]
[1732879840490,0.27843,3590.6,3590.4,1.8182]
[1732879840687,0.27844,3590.5,3590.4,1.8182]
[1732879841185,3.2078,3590.5,3589.8,0.4324]
[1732879841394,0.27847,3590.1,3589.8,0.4324]
[1732879841789,0.70647,3590.1,3589.8,0.4324]
[1732879842191,0.428,3590.1,3589.8,0.4324]
[1732879842390,0.70647,3590.1,3589.8,0.4324]
[1732879842691,3.91427,3590.1,3589.8,0.4324]
[1732879842896,3.6358,3590.1,3589.8,0.4324]
[1732879843289,3.91427,3590.1,3589.8,0.4324]
[1732879843490,3.6358,3590.1,3589.8,0.4324]
[1732879843691,0.27848,3590.0,3589.8,0.4324]
[1732879843887,3.6358,3590.1,3589.7,0.4075]
[1732879844093,0.27848,3590.0,3589.7,0.686]
[1732879844299,3.2078,3590.1,3589.7,0.4075]
[1732879844595,3.2078,3590.1,3589.8,0.27849]
[1732879844892,3.2078,3590.1,3589.7,0.4075]
[1732879844893,3.2078,3590.1,3589.9,0.27848]
[1732879845200,3.2078,3590.1,3589.7,0.4075]
[1732879845492,3.48627,3590.1,3589.7,0.686]
[1732879845690,3.2078,3590.1,3589.7,0.4075]
[1732879845890,3.2078,3590.1,3589.8,0.27849]
[1732879846304,3.2078,3590.1,3589.9,0.27848]
[1732879846597,3.2078,3590.1,3589.8,0.27849]
[1732879846791,3.48627,3590.1,3589.8,0.27849]
[1732879846990,3.48627,3590.1,3589.7,0.686]
[1732879847193,3.2078,3590.1,3589.7,0.686]
[1732879847397,0.27848,3590.0,3589.7,0.686]
[1732879847598,3.2078,3590.1,3589.7,0.4075]
[1732879847999,3.48627,3590.1,3589.8,0.27849]
[1732879848205,3.2078,3590.1,3589.9,0.27848]
[1732879848498,0.27847,3590.1,3589.8,0.27849]
[1732879848792,0.82,3590.2,3589.7,0.4075]
[1732879848996,0.82,3590.2,3590.1,0.27847]
[1732879849193,0.69599,3591.1,3589.8,3.2078]
[1732879849194,0.82,3590.4,3589.8,3.2078]
[1732879849391,0.82,3590.5,3589.8,3.2078]
[1732879849596,4.0278,3590.5,3590.1,40.8]
[1732879850194,4.0278,3590.5,3590.2,0.4114]
[1732879850390,0.4173,3590.8,3590.6,0.27843]
[1732879850599,0.4173,3590.8,3590.2,4.4636]
[1732879850794,0.69572,3590.8,3590.2,4.4636]
[1732879851098,0.4173,3590.8,3590.5,0.27843]
[1732879851295,6.17460583,3590.9,3590.2,4.4636]
[1732879851493,6.87031583,3590.9,3590.2,4.4636]
[1732879851688,6.87031583,3590.9,3590.6,0.27843]
[1732879852000,0.27842,3590.7,3590.4,0.27844]
[1732879852398,1.09842,3590.8,3590.3,0.4364]
[1732879852701,1.09842,3590.8,3590.5,0.27843]
[1732879853103,1.09842,3590.8,3590.5,0.27844]
[1732879853306,1.09842,3590.8,3590.4,0.27844]
[1732879853604,1.09842,3590.8,3590.3,0.4364]
[1732879853605,2.54450583,3590.5,3590.3,0.4364]
[1732879853797,5.75230583,3590.5,3589.8,3.2078]
[1732879854004,0.27847,3590.2,3589.9,0.27848]
[1732879854304,1.2581,3590.1,3590.0,0.27848]
[1732879854496,1.2581,3590.1,3590.0,0.70848]
[1732879855402,1.2581,3590.1,3590.0,0.43]
[1732879855593,1.53657,3590.1,3590.0,0.43]
[1732879855792,1.2581,3590.1,3589.8,44.0078]
[1732879855992,1.2581,3590.1,3589.9,0.27848]
[1732879856805,1.2581,3590.1,3589.8,44.0078]
[1732879857003,1.2581,3590.1,3590.0,0.27848]
[1732879858500,1.2581,3590.1,3589.8,44.0078]
[1732879858797,1.2581,3590.1,3589.9,0.27848]
[1732879859806,1.53657,3590.1,3589.9,0.27848]
[1732879860006,1.2581,3590.1,3589.9,0.27848]
[1732879860407,1.53657,3590.1,3589.9,0.27848]
[1732879860895,1.2581,3590.1,3589.9,0.27848]
[1732879861096,1.2581,3590.1,3589.8,44.0078]
[1732879861295,1.2581,3590.1,3590.0,0.27848]
[1732879861712,0.82,3590.1,3590.0,0.27848]
[1732879863904,0.82,3590.2,3590.1,0.27847]
[1732879867402,0.27845,3590.4,3590.1,0.27847]
[1732879867603,0.82,3590.3,3590.2,0.4506]
[1732879868204,1.09845,3590.3,3590.2,0.4506]
[1732879868700,1.09845,3590.3,3588.9,3.2078]
[1732879868701,0.69616,3590.2,3588.9,3.2078]
[1732879868906,0.27855,3589.1,3588.9,4.03]
[1732879869105,0.82,3589.1,3588.9,4.03]
[1732879869601,0.82,3589.1,3588.9,4.30856]
[1732879870007,0.82,3589.1,3589.0,0.27855]
[1732879870206,0.82,3589.1,3589.0,4.10855]
[1732879871108,0.82,3589.5,3589.1,0.27855]
[1732879871411,0.82,3589.5,3589.4,0.27852]
[1732879871613,0.82,3589.5,3589.4,41.07852]
[1732879872013,2.97310583,3590.0,3589.4,40.8]
[1732879872309,3.2078,3590.1,3589.8,0.27849]
[1732879872513,3.2078,3590.1,3590.0,0.27848]
[1732879872712,4.30627,3590.1,3590.0,0.27848]
[1732879873009,4.30627,3590.1,3589.9,1.11668]
[1732879873213,4.30627,3590.1,3590.0,40.8]
[1732879874214,4.30624,3590.1,3590.0,40.8]
[1732879874411,4.0278,3590.1,3590.0,41.07845]
[1732879874608,3.48621,3590.5,3590.3,0.27843]
[1732879874912,1.09842,3590.4,3590.2,0.27843]
[1732879875115,1.09842,3590.4,3590.3,0.27843]
[1732879875116,0.82,3590.4,3590.3,0.27843]
[1732879875305,2.96810583,3590.8,3590.1,0.45]
[1732879875510,0.82,3590.7,3590.1,2.6161]
[1732879875715,4.30618,3590.9,3590.7,0.27839]
[1732879875912,4.30618,3590.9,3590.8,0.45]
[1732879875913,4.0278,3590.9,3590.8,0.45]
[1732879876102,4.0278,3590.9,3590.8,2.54]
[1732879876816,4.0278,3590.9,3590.8,2.81839]
[1732879877210,0.82,3590.9,3590.8,2.81839]
[1732879877410,10.57135256,3591.3,3591.0,0.27837]
[1732879877719,0.82,3591.2,3591.0,0.27837]
[1732879878014,0.82,3591.2,3590.8,0.45]
[1732879878015,1.09836,3591.2,3590.9,0.27837]
[1732879878214,0.27837,3591.0,3590.8,0.72838]
[1732879878517,0.82,3591.2,3590.8,4.37838]
[1732879878518,0.27837,3591.1,3590.8,4.37838]
[1732879879318,0.27838,3590.9,3590.8,4.1]
[1732879879519,0.4138,3591.1,3590.8,4.1]
[1732879879816,0.27838,3591.0,3590.8,4.1]
[1732879880208,9.84320256,3591.3,3590.9,3.2078]
[1732879880416,9.84320256,3591.3,3591.2,0.27836]
[1732879880611,9.84320256,3591.3,3591.2,0.57836]
[1732879880806,9.84320256,3591.3,3591.2,41.1]
[1732879881009,9.84320256,3591.3,3591.2,41.37836]
[1732879881917,9.84320256,3591.3,3591.2,0.57836]
[1732879882214,3.21311117,3591.8,3591.2,1.119]
[1732879882511,13.12111316,3594.4,3594.2,0.27812]
[1732879882712,13.12111316,3594.4,3592.4,3.2078]
[1732879882713,13.12111316,3594.4,3594.3,2.54450583]
[1732879882912,13.12111316,3594.4,3594.0,3.2078]
[1732879883314,0.819,3594.9,3594.0,3.8278]
[1732879883518,0.819,3594.9,3594.3,40.8]
[1732879883817,0.2781,3594.6,3594.3,40.8]
[1732879884012,3.36350583,3594.9,3594.3,40.8]
[1732879884209,0.97360188,3595.8,3594.7,3.2078]
[1732879884210,0.27859188,3595.8,3594.7,3.2078]
[1732879884414,2.54450583,3595.3,3594.3,44.0078]
[1732879884608,0.27808,3594.8,3594.3,44.0078]
[1732879884814,0.819,3594.9,3594.3,44.0078]
[1732879885009,0.819,3594.9,3594.3,44.2778]
[1732879885309,0.27811,3594.4,3594.3,40.8]
[1732879885513,0.4234,3594.8,3593.9,3.2078]
[1732879885716,0.819,3594.7,3593.9,6.3178]
[1732879885918,0.27809,3594.6,3593.9,6.3178]
[1732879886113,0.27809,3594.6,3593.9,47.1178]
[1732879886321,0.819,3594.7,3593.9,6.3178]
[1732879886815,0.27813,3594.2,3593.9,6.3178]
[1732879887022,0.27814,3594.0,3593.9,6.3178]
[1732879887217,0.27814,3594.0,3593.1,3.2078]
[1732879887218,4.0268,3594.0,3593.1,3.2078]
[1732879887416,4.0268,3594.0,3593.1,4.3678]
[1732879887622,0.27818,3593.5,3593.1,4.3678]
[1732879887825,0.819,3593.4,3593.1,4.3678]
[1732879888028,3.2078,3594.0,3593.1,4.3678]
[1732879888029,1.09719,3593.3,3593.1,4.3678]
[1732879888522,0.27819,3593.4,3593.1,4.3678]
[1732879888722,0.819,3593.3,3593.1,4.3678]
[1732879889831,1.0972,3593.3,3593.1,4.3678]
[1732879890524,0.819,3593.3,3593.1,4.3678]
[1732879890933,0.27819,3593.4,3593.1,4.3678]
[1732879891232,0.819,3593.3,3593.1,4.3678]
[1732879892331,0.819,3593.2,3593.1,4.3678]
[1732879893332,1.0972,3593.2,3593.1,4.3678]
[1732879893537,0.4063,3593.8,3593.1,4.3678]
[1732879893727,0.27819,3593.4,3593.1,4.3678]
[1732879893930,0.2782,3593.3,3593.1,4.3678]
[1732879894339,0.27819,3593.4,3593.1,4.3678]
[1732879894633,0.819,3593.7,3593.1,4.3678]
[1732879895028,0.4063,3593.8,3593.1,4.3678]
[1732879895232,1.09717,3593.7,3593.1,4.646]
[1732879895434,0.2782,3593.2,3593.1,4.3678]
[1732879896437,0.856,3593.2,3593.1,4.3678]
[1732879896637,1.1342,3593.2,3593.1,4.3678]
[1732879896941,0.856,3593.2,3593.1,4.3678]
[1732879897434,0.856,3593.3,3593.2,0.2782]
[1732879897640,0.856,3593.3,3593.2,4.01]
[1732879898238,0.856,3593.4,3593.2,4.01]
[1732879898738,0.27817,3593.6,3593.2,4.01]
[1732879898938,0.856,3593.5,3593.2,4.2882]
[1732879899333,0.856,3593.6,3593.2,4.01]
[1732879899843,0.27819,3593.3,3593.2,4.01]
[1732879900341,1.13418,3593.5,3593.2,4.01]
[1732879900740,0.27819,3593.4,3593.2,4.01]
[1732879900934,0.27819,3593.3,3593.2,4.01]
[1732879908445,0.27819,3593.4,3593.2,4.01]
[1732879908744,0.27819,3593.3,3593.2,4.01]
[1732879909243,0.856,3593.5,3593.2,4.01]
[1732879909454,0.4063,3593.8,3593.3,0.27819]
[1732879909455,0.856,3593.4,3593.3,0.27819]
[1732879909749,1.13419,3593.4,3593.3,4.13]
[1732879911244,1.13419,3593.4,3592.6,3.2078]
[1732879911245,0.69554,3593.1,3592.6,3.2078]
[1732879911445,0.27826,3592.5,3592.1,3.48608]
[1732879911649,0.27826,3592.4,3592.1,5.66608]
[1732879911957,0.856,3592.5,3592.3,0.27827]
[1732879912251,0.856,3592.5,3592.3,3.36827]
[1732879912451,0.27826,3592.5,3592.3,3.09]
[1732879912647,0.856,3592.5,3592.3,3.09]
[1732879913043,0.27826,3592.4,3592.3,3.09]
[1732879918858,1.13426,3592.4,3592.3,3.09]
[1732879921353,0.856,3592.4,3592.3,3.09]
[1732879921554,1.13426,3592.4,3592.3,3.09]
[1732879922855,0.856,3592.4,3592.3,3.09]
[1732879923061,1.13426,3592.4,3592.3,3.09]
[1732879924660,1.13426,3592.5,3592.3,3.09]
[1732879925257,0.827,3592.4,3592.3,3.36827]
[1732879925465,0.93120609,3593.2,3593.0,0.27821]
[1732879925466,0.827,3593.2,3593.0,0.27821]
[1732879925762,0.2782,3593.2,3593.0,2.33]
[1732879925953,0.827,3593.1,3593.0,2.33]
[1732879926262,0.27821,3593.2,3593.0,43.13]
[1732879926564,0.827,3593.1,3593.0,43.13]
[1732879927351,1.10521,3593.1,3593.0,43.13]
[1732879928165,0.827,3593.1,3593.0,43.13]
[1732879928762,1.10521,3593.1,3593.0,43.13]
[1732879928962,1.52271,3593.1,3593.0,43.13]
[1732879929365,1.2445,3593.1,3593.0,43.13]
[1732879930059,1.2445,3593.1,3593.0,2.60822]
[1732879930558,1.52271,3593.1,3593.0,2.33]
[1732879931459,6.2445,3593.1,3592.3,3.2078]
[1732879931669,0.27826,3592.4,3592.3,3.2078]
[1732879931857,1.10526,3592.4,3592.3,3.6278]
[1732879932859,0.827,3592.4,3592.3,3.6278]
[1732879933159,0.827,3592.4,3592.3,3.90607]
[1732879935463,0.827,3592.4,3592.3,44.4278]
[1732879935664,0.827,3592.4,3592.3,44.70607]
[1732879936654,0.827,3592.5,3592.3,44.4278]
[1732879936855,0.27823,3593.0,3592.9,0.27824]
[1732879937059,1.10523,3593.0,3592.9,0.65]
[1732879937367,0.69571,3593.1,3592.9,0.92822]
[1732879937568,0.827,3593.0,3592.9,0.65]
[1732879938071,0.4175,3593.1,3592.9,0.92822]
[1732879938367,0.827,3593.0,3592.9,0.92822]
[1732879939067,1.10522,3593.0,3592.9,0.92822]
[1732879939261,1.10522,3593.0,3592.9,0.65]
[1732879939864,0.827,3593.0,3592.8,0.428]
[1732879940058,0.27822,3592.9,3592.8,1.668]
[1732879940266,0.827,3593.0,3592.4,0.8478]
[1732879940458,0.27824,3592.7,3592.5,0.27825]
[1732879940661,0.827,3593.0,3592.5,1.26825]
[1732879940866,0.827,3593.0,3592.5,0.99]
[1732879941066,0.27824,3592.8,3592.5,1.26825]
[1732879941569,0.827,3593.0,3592.5,0.99]
[1732879941762,0.27825,3592.7,3592.5,0.99]
[1732879941962,0.27823,3592.8,3592.5,1.26825]
[1732879942358,2.54450583,3592.8,3592.5,0.99]
[1732879942564,0.27825,3592.6,3592.5,0.99]
[1732879943870,0.827,3593.0,3592.5,0.99]
[1732879944169,0.4175,3593.1,3592.5,0.99]